[Event "Queens Festival Final-C 2022"]
[Site "Tornelo"]
[Date "2022.06.25"]
[Round "3.1"]
[White "Vicze, Zsofia"]
[Black "Castillo Beitia, Ashley Alexandra"]
[Result "1-0"]
[ECO "B38"]
[WhiteElo "1749"]
[BlackElo "1620"]
[Annotator "NA RC"]
[PlyCount "87"]
[EventDate "2022.06.24"]
[EventType "tourn"]
[EventCountry "NET"]
[SourceTitle "playchess.com"]
[Source "ChessBase"]
[SourceQuality "1"]
[TimeControl "180+2"]

1. e4 {[%emt 0:00:02]} c5 {[%emt 0:00:05]} 2. Nf3 {[%emt 0:00:03]} d6 {[%emt 0:00:01]} 3. d4 {[%emt 0:00:02]} cxd4 {[%emt 0:00:02]} 4. Nxd4 {[%emt 0:00:01]} Nf6 {[%emt 0:00:01]} 5. f3 {[%emt 0:00:01]} g6 {[%emt 0:00:02]} 6. c4 {[%emt 0:00:02]} Bg7 {[%emt 0:00:03]} 7. Nc3 {[%emt 0:00:01]} O-O {[%emt 0:00:02]} 8. Be3 {[%emt 0:00:02]} Nc6 {[%emt 0:00:01]} 9. Be2 {[%emt 0:00:01]} Nxd4 {[%emt 0:00:03]} 10. Bxd4 {[%emt 0:00:02]} Be6 {[%emt 0:00:01]} 11. O-O {[%emt 0:00:04]} Nd7 {[%emt 0:00:08]} 12. b3 {[%emt 0:00:05]} Rc8 {[%emt 0:00:08]} 13. Bxg7 {[%emt 0:00:07]} Kxg7 {[%emt 0:00:02]} 14. Qd4+ {[%emt 0:00:02]} f6 {[%emt 0:00:02]} 15. Qxa7 {[%emt 0:00:04]} Nb6 {[%emt 0:00:16]} 16. Qa3 {[%emt 0:00:08]} Qc7 {[%emt 0:00:06]} 17. Kh1 {[%emt 0:00:09]} Ra8 {[%emt 0:00:08]} 18. Qb2 {[%emt 0:00:03]} Qc5 {[%emt 0:00:06]} 19. Rad1 {[%emt 0:00:12]} Qb4 {[%emt 0:00:05]} 20. Qd2 {[%emt 0:00:11]} Rfc8 {[%emt 0:00:15]} 21. Rfe1 {[%emt 0:00:04]} Nd7 {[%emt 0:00:21]} 22. Bf1 {[%emt 0:00:09]} Nc5 {[%emt 0:00:09]} 23. Qc2 {[%emt 0:00:22]} Ra5 {[%emt 0:00:15]} 24. Nd5 {[%emt 0:00:06]} Bxd5 {[%emt 0:00:06]} 25. exd5 {[%emt 0:00:02]} Kf7 {[%emt 0:00:11]} 26. Qe2 {[%emt 0:00:13]} Rc7 {[%emt 0:00:05]} 27. Rd2 {[%emt 0:00:03]} Ra8 {[%emt 0:00:05]} 28. Qd1 {[%emt 0:00:04]} Re8 {[%emt 0:00:03]} 29. Rde2 {[%emt 0:00:02]} e6 {[%emt 0:00:07]} 30. Qc1 {[%emt 0:00:04]} Nd3 {[%emt 0:00:08]} 31. Qh6 {[%emt 0:00:06]} Kg8 {[%emt 0:00:21]} 32. Rd1 {[%emt 0:00:09]} Ne5 {[%emt 0:00:05]} 33. f4 {[%emt 0:00:12]} Ng4 {[%emt 0:00:05]} 34. Qh4 {[%emt 0:00:03]} h5 {[%emt 0:00:04]} 35. h3 {[%emt 0:00:03]} Nh6 {[%emt 0:00:08]} 36. Qxf6 {[%emt 0:00:04]} Kh7 {[%emt 0:00:06]} 37. dxe6 {[%emt 0:00:10]} Nf5 {[%emt 0:00:04]} 38. Kh2 {[%emt 0:00:08]} Qc5 {[%emt 0:00:08]} 39. Rd3 {[%emt 0:00:05]} Qc6 {[%emt 0:00:02]} 40. Re1 {[%emt 0:00:21]} Rce7 {[%emt 0:00:03]} 41. g4 {[%emt 0:00:10]} hxg4 {[%emt 0:00:04]} 42. hxg4 {[%emt 0:00:02]} Ng7 {[%emt 0:00:04]} 43. Rh3+ {[%emt 0:00:04]} Kg8 {[%emt 0:00:02]} 44. f5 {[%emt 0:00:03]} 1-0

[Event "Queens Festival Final-C 2022"]
[Site "Tornelo"]
[Date "2022.06.25"]
[Round "3.3"]
[White "Jimenez Salas, Maria Teresa"]
[Black "Pragnya H G"]
[Result "1-0"]
[ECO "B55"]
[WhiteElo "1813"]
[BlackElo "1605"]
[Annotator "NA RC"]
[PlyCount "99"]
[EventDate "2022.06.24"]
[EventType "tourn"]
[EventCountry "NET"]
[SourceTitle "playchess.com"]
[Source "ChessBase"]
[SourceQuality "1"]
[TimeControl "180+2"]

1. e4 {[%emt 0:00:02]} c5 {[%emt 0:00:06]} 2. Nf3 {[%emt 0:00:03]} d6 {[%emt 0:00:02]} 3. d4 {[%emt 0:00:01]} cxd4 {[%emt 0:00:02]} 4. Nxd4 {[%emt 0:00:00]} Nf6 {[%emt 0:00:01]} 5. f3 {[%emt 0:00:01]} a6 {[%emt 0:00:02]} 6. c4 {[%emt 0:00:01]} e5 {[%emt 0:00:01]} 7. Nc2 {[%emt 0:00:02]} Be7 {[%emt 0:00:02]} 8. Nc3 {[%emt 0:00:03]} Be6 {[%emt 0:00:01]} 9. Be3 {[%emt 0:00:03]} Nbd7 {[%emt 0:00:06]} 10. Be2 {[%emt 0:00:11]} O-O {[%emt 0:00:02]} 11. O-O {[%emt 0:00:02]} Rc8 {[%emt 0:00:05]} 12. Nd5 {[%emt 0:00:07]} Ne8 {[%emt 0:00:10]} 13. Rc1 {[%emt 0:00:08]} f5 {[%emt 0:00:04]} 14. exf5 {[%emt 0:00:18]} Rxf5 {[%emt 0:00:07]} 15. Ncb4 {[%emt 0:00:22]} Rf8 {[%emt 0:00:14]} 16. Nxe7+ {[%emt 0:00:04]} Qxe7 {[%emt 0:00:02]} 17. Nd5 {[%emt 0:00:01]} Qd8 {[%emt 0:00:09]} 18. Qb3 {[%emt 0:00:08]} b5 {[%emt 0:00:22]} 19. cxb5 {[%emt 0:00:17]} Nc7 {[%emt 0:00:11]} 20. Bc4 {[%emt 0:00:38]} axb5 {[%emt 0:00:30]} 21. Nxc7 {[%emt 0:00:01]} Bxc4 {[%emt 0:00:02]} 22. Rxc4 {[%emt 0:00:10]} bxc4 {[%emt 0:00:02]} 23. Qxc4+ {[%emt 0:00:02]} Kh8 {[%emt 0:00:01]} 24. Rc1 {[%emt 0:00:02]} d5 {[%emt 0:00:12]} 25. Qc6 {[%emt 0:00:08]} Rf6 {[%emt 0:00:12]} 26. Qb7 {[%emt 0:00:05]} Rb6 {[%emt 0:00:01]} 27. Bxb6 {[%emt 0:00:03]} Nxb6 {[%emt 0:00:05]} 28. Qxb6 {[%emt 0:00:05]} h6 {[%emt 0:00:02]} 29. Rc5 {[%emt 0:00:09]} d4 {[%emt 0:00:06]} 30. Nd5 {[%emt 0:00:05]} d3 {[%emt 0:00:09]} 31. Qxd8+ {[%emt 0:00:14]} Rxd8 {[%emt 0:00:01]} 32. Ne3 {[%emt 0:00:02]} d2 {[%emt 0:00:02]} 33. Nd1 {[%emt 0:00:01]} Rb8 {[%emt 0:00:01]} 34. Rxe5 {[%emt 0:00:02]} Ra8 {[%emt 0:00:02]} 35. Rd5 {[%emt 0:00:02]} Rxa2 {[%emt 0:00:02]} 36. Rxd2 {[%emt 0:00:00]} Ra1 {[%emt 0:00:01]} 37. Kf2 {[%emt 0:00:02]} Rc1 {[%emt 0:00:01]} 38. h3 {[%emt 0:00:01]} Kh7 {[%emt 0:00:01]} 39. b4 {[%emt 0:00:01]} Kg6 {[%emt 0:00:01]} 40. b5 {[%emt 0:00:01]} Kf5 {[%emt 0:00:01]} 41. Ne3+ {[%emt 0:00:02]} Ke5 {[%emt 0:00:01]} 42. b6 {[%emt 0:00:03]} Rb1 {[%emt 0:00:02]} 43. Kg3 {[%emt 0:00:04]} Ke6 {[%emt 0:00:02]} 44. Nc4 {[%emt 0:00:02]} Rb4 {[%emt 0:00:03]} 45. Rb2 {[%emt 0:00:03]} Rxb2 {[%emt 0:00:06]} 46. Nxb2 {[%emt 0:00:00]} Kd6 {[%emt 0:00:00]} 47. Nc4+ {[%emt 0:00:02]} Kc6 {[%emt 0:00:01]} 48. Kf4 {[%emt 0:00:01]} Kb7 {[%emt 0:00:01]} 49. Kf5 {[%emt 0:00:01]} Kc6 {[%emt 0:00:01]} 50. Kg6 {[%emt 0:00:01]} 1-0

[Event "Queens Festival Final-C 2022"]
[Site "Tornelo"]
[Date "2022.06.25"]
[Round "3.4"]
[White "Davari, Sara"]
[Black "Sanudula, K M Dahamdi"]
[Result "0-1"]
[ECO "B01"]
[WhiteElo "1674"]
[BlackElo "1710"]
[Annotator "NA RC"]
[PlyCount "128"]
[EventDate "2022.06.24"]
[EventType "tourn"]
[EventCountry "NET"]
[SourceTitle "playchess.com"]
[Source "ChessBase"]
[SourceQuality "1"]
[TimeControl "180+2"]

1. e4 {[%emt 0:00:02]} d5 {[%emt 0:00:05]} 2. exd5 {[%emt 0:00:02]} Qxd5 {[%emt 0:00:00]} 3. Nc3 {[%emt 0:00:01]} Qa5 {[%emt 0:00:01]} 4. d4 {[%emt 0:00:02]} Nf6 {[%emt 0:00:01]} 5. Bc4 {[%emt 0:00:02]} Bg4 {[%emt 0:00:04]} 6. f3 {[%emt 0:00:02]} Bf5 {[%emt 0:00:01]} 7. Nge2 {[%emt 0:00:01]} e6 {[%emt 0:00:12]} 8. O-O {[%emt 0:00:02]} c6 {[%emt 0:00:04]} 9. Ng3 {[%emt 0:00:02]} Bg6 {[%emt 0:00:03]} 10. f4 {[%emt 0:00:02]} Bh5 {[%emt 0:00:14]} 11. Nxh5 {[%emt 0:00:10]} Qxh5 {[%emt 0:00:01]} 12. Qxh5 {[%emt 0:00:04]} Nxh5 {[%emt 0:00:02]} 13. f5 {[%emt 0:00:07]} exf5 {[%emt 0:00:06]} 14. Rxf5 {[%emt 0:00:06]} Nf6 {[%emt 0:00:01]} 15. Bg5 {[%emt 0:00:07]} Nbd7 {[%emt 0:00:06]} 16. Re1+ {[%emt 0:00:04]} Be7 {[%emt 0:00:14]} 17. Rf3 {[%emt 0:00:21]} Kf8 {[%emt 0:00:04]} 18. Bxf6 {[%emt 0:00:19]} Nxf6 {[%emt 0:00:13]} 19. Ne4 {[%emt 0:00:08]} h6 {[%emt 0:00:17]} 20. Ng3 {[%emt 0:00:12]} g6 {[%emt 0:00:14]} 21. Ne4 {[%emt 0:00:06]} Kg7 {[%emt 0:00:03]} 22. c3 {[%emt 0:00:17]} Rhf8 {[%emt 0:00:15]} 23. Nxf6 {[%emt 0:00:04]} Bxf6 {[%emt 0:00:02]} 24. Ref1 {[%emt 0:00:01]} Bg5 {[%emt 0:00:16]} 25. Rxf7+ {[%emt 0:00:03]} Rxf7 {[%emt 0:00:01]} 26. Rxf7+ {[%emt 0:00:01]} Kh8 {[%emt 0:00:02]} 27. Rxb7 {[%emt 0:00:15]} Rf8 {[%emt 0:00:02]} 28. h3 {[%emt 0:00:18]} Be3+ {[%emt 0:00:10]} 29. Kh1 {[%emt 0:00:07]} Rf2 {[%emt 0:00:06]} 30. Re7 {[%emt 0:00:31]} Bg5 {[%emt 0:00:21]} 31. Rxa7 {[%emt 0:00:08]} Rxb2 {[%emt 0:00:02]} 32. g4 {[%emt 0:00:05]} Rc2 {[%emt 0:00:09]} 33. Ra8+ {[%emt 0:00:04]} Kg7 {[%emt 0:00:03]} 34. Ra7+ {[%emt 0:00:04]} Kf8 {[%emt 0:00:07]} 35. Ra3 {[%emt 0:00:03]} Bd2 {[%emt 0:00:04]} 36. Bd3 {[%emt 0:00:06]} Rc1+ {[%emt 0:00:04]} 37. Kg2 {[%emt 0:00:01]} Bxc3 {[%emt 0:00:02]} 38. Bxg6 {[%emt 0:00:03]} Bxd4 {[%emt 0:00:04]} 39. Rf3+ {[%emt 0:00:02]} Ke7 {[%emt 0:00:03]} 40. Bf5 {[%emt 0:00:02]} Rd1 {[%emt 0:00:04]} 41. Rd3 {[%emt 0:00:02]} Rg1+ {[%emt 0:00:08]} 42. Kh2 {[%emt 0:00:01]} Bb6 {[%emt 0:00:04]} 43. Rb3 {[%emt 0:00:02]} Bc5 {[%emt 0:00:05]} 44. Rb7+ {[%emt 0:00:02]} Kd6 {[%emt 0:00:05]} 45. Rd7+ {[%emt 0:00:01]} Ke5 {[%emt 0:00:01]} 46. Rf7 {[%emt 0:00:04]} Ra1 {[%emt 0:00:02]} 47. Rh7 {[%emt 0:00:04]} Rxa2+ {[%emt 0:00:01]} 48. Kg3 {[%emt 0:00:01]} Bf2+ {[%emt 0:00:02]} 49. Kf3 {[%emt 0:00:01]} Bd4 {[%emt 0:00:03]} 50. Rxh6 {[%emt 0:00:02]} c5 {[%emt 0:00:02]} 51. Re6+ {[%emt 0:00:03]} Kd5 {[%emt 0:00:02]} 52. Re8 {[%emt 0:00:01]} Ra3+ {[%emt 0:00:01]} 53. Ke2 {[%emt 0:00:02]} Kc4 {[%emt 0:00:01]} 54. Be6+ {[%emt 0:00:02]} Kb4 {[%emt 0:00:01]} 55. Rb8+ {[%emt 0:00:02]} Kc3 {[%emt 0:00:01]} 56. g5 {[%emt 0:00:02]} Ra1 {[%emt 0:00:02]} 57. h4 {[%emt 0:00:01]} Rh1 {[%emt 0:00:02]} 58. Rb3+ {[%emt 0:00:02]} Kc2 {[%emt 0:00:02]} 59. Rg3 {[%emt 0:00:04]} Rxh4 {[%emt 0:00:02]} 60. g6 {[%emt 0:00:01]} Re4+ {[%emt 0:00:02]} 61. Kf3 {[%emt 0:00:03]} Rxe6 {[%emt 0:00:01]} 62. g7 {[%emt 0:00:01]} Re3+ {[%emt 0:00:02]} 63. Kg2 {[%emt 0:00:04]} Rxg3+ {[%emt 0:00:00]} 64. Kxg3 {[%emt 0:00:01]} Bxg7 {[%emt 0:00:01]} 0-1

[Event "Queens Festival Final-C 2022"]
[Site "Tornelo"]
[Date "2022.06.25"]
[Round "3.5"]
[White "Stadlinger, Lea"]
[Black "Lampard, Alice"]
[Result "0-1"]
[ECO "B35"]
[WhiteElo "1723"]
[BlackElo "1756"]
[Annotator "NA RC"]
[PlyCount "102"]
[EventDate "2022.06.24"]
[EventType "tourn"]
[EventCountry "NET"]
[SourceTitle "playchess.com"]
[Source "ChessBase"]
[SourceQuality "1"]
[TimeControl "180+2"]

1. e4 {[%emt 0:00:02]} c5 {[%emt 0:00:04]} 2. Nf3 {[%emt 0:00:03]} Nc6 {[%emt 0:00:02]} 3. d4 {[%emt 0:00:03]} cxd4 {[%emt 0:00:00]} 4. Nxd4 {[%emt 0:00:02]} g6 {[%emt 0:00:01]} 5. Nc3 {[%emt 0:00:02]} Bg7 {[%emt 0:00:01]} 6. Be3 {[%emt 0:00:02]} Nf6 {[%emt 0:00:03]} 7. Bc4 {[%emt 0:00:04]} O-O {[%emt 0:00:02]} 8. f3 {[%emt 0:00:03]} Qb6 {[%emt 0:00:02]} 9. Bb3 {[%emt 0:00:53]} Ng4 {[%emt 0:00:05]} 10. fxg4 {[%emt 0:00:14]} Bxd4 {[%emt 0:00:03]} 11. Bxd4 {[%emt 0:00:06]} Qxd4 {[%emt 0:00:04]} 12. Qxd4 {[%emt 0:00:07]} Nxd4 {[%emt 0:00:00]} 13. Nd5 {[%emt 0:00:03]} Nc6 {[%emt 0:00:19]} 14. O-O {[%emt 0:00:03]} d6 {[%emt 0:00:08]} 15. Ne3 {[%emt 0:00:12]} Nd4 {[%emt 0:00:23]} 16. Rad1 {[%emt 0:00:09]} Nxb3 {[%emt 0:00:03]} 17. cxb3 {[%emt 0:00:04]} Be6 {[%emt 0:00:05]} 18. Rc1 {[%emt 0:00:07]} Rac8 {[%emt 0:00:02]} 19. Nd5 {[%emt 0:00:04]} Bxd5 {[%emt 0:00:23]} 20. exd5 {[%emt 0:00:04]} Rc5 {[%emt 0:00:04]} 21. Rxc5 {[%emt 0:00:03]} dxc5 {[%emt 0:00:02]} 22. Re1 {[%emt 0:00:01]} Re8 {[%emt 0:00:14]} 23. Kf2 {[%emt 0:00:10]} Kf8 {[%emt 0:00:02]} 24. Rc1 {[%emt 0:00:06]} b6 {[%emt 0:00:02]} 25. b4 {[%emt 0:00:03]} cxb4 {[%emt 0:00:07]} 26. Rc7 {[%emt 0:00:04]} Rd8 {[%emt 0:00:03]} 27. Rxa7 {[%emt 0:00:08]} Rxd5 {[%emt 0:00:02]} 28. b3 {[%emt 0:00:04]} e6 {[%emt 0:00:42]} 29. h3 {[%emt 0:00:02]} Kg7 {[%emt 0:00:10]} 30. Ke3 {[%emt 0:00:02]} Kf6 {[%emt 0:00:03]} 31. Ra4 {[%emt 0:00:03]} Ra5 {[%emt 0:00:08]} 32. Rxb4 {[%emt 0:00:07]} Rxa2 {[%emt 0:00:02]} 33. Kf3 {[%emt 0:00:03]} Ra6 {[%emt 0:00:04]} 34. g3 {[%emt 0:00:02]} Ke5 {[%emt 0:00:03]} 35. Rb5+ {[%emt 0:00:04]} Kd6 {[%emt 0:00:01]} 36. Ke4 {[%emt 0:00:03]} Kc6 {[%emt 0:00:04]} 37. Rb4 {[%emt 0:00:03]} Ra5 {[%emt 0:00:08]} 38. Rc4+ {[%emt 0:00:05]} Kd6 {[%emt 0:00:02]} 39. Rb4 {[%emt 0:00:03]} Kc6 {[%emt 0:00:06]} 40. Rc4+ {[%emt 0:00:02]} Rc5 {[%emt 0:00:01]} 41. Rxc5+ {[%emt 0:00:04]} Kxc5 {[%emt 0:00:01]} 42. Ke5 {[%emt 0:00:01]} Kb4 {[%emt 0:00:04]} 43. Kf6 {[%emt 0:00:00]} Kxb3 {[%emt 0:00:02]} 44. Kxf7 {[%emt 0:00:00]} e5 {[%emt 0:00:01]} 45. h4 {[%emt 0:00:05]} e4 {[%emt 0:00:03]} 46. h5 {[%emt 0:00:02]} gxh5 {[%emt 0:00:02]} 47. gxh5 {[%emt 0:00:03]} e3 {[%emt 0:00:01]} 48. g4 {[%emt 0:00:00]} e2 {[%emt 0:00:01]} 49. g5 {[%emt 0:00:01]} e1=Q {[%emt 0:00:01]} 50. g6 {[%emt 0:00:00]} hxg6 {[%emt 0:00:03]} 51. hxg6 {[%emt 0:00:02]} Qf2+ {[%emt 0:00:01]} 0-1

[Event "Queens Festival Final-C 2022"]
[Site "Tornelo"]
[Date "2022.06.25"]
[Round "4.1"]
[White "Castillo Beitia, Ashley Alexandra"]
[Black "Lampard, Alice"]
[Result "0-1"]
[ECO "D85"]
[WhiteElo "1620"]
[BlackElo "1756"]
[Annotator "NA RC"]
[PlyCount "144"]
[EventDate "2022.06.24"]
[EventType "tourn"]
[EventCountry "NET"]
[SourceTitle "playchess.com"]
[Source "ChessBase"]
[SourceQuality "1"]
[TimeControl "180+2"]

1. d4 {[%emt 0:00:02]} Nf6 {[%emt 0:00:05]} 2. c4 {[%emt 0:00:02]} g6 {[%emt 0:00:01]} 3. Nc3 {[%emt 0:00:02]} d5 {[%emt 0:00:02]} 4. cxd5 {[%emt 0:00:03]} Nxd5 {[%emt 0:00:01]} 5. Nf3 {[%emt 0:00:06]} Nxc3 {[%emt 0:00:02]} 6. bxc3 {[%emt 0:00:02]} Bg7 {[%emt 0:00:03]} 7. e3 {[%emt 0:00:03]} O-O {[%emt 0:00:02]} 8. Bb2 {[%emt 0:00:04]} c5 {[%emt 0:00:12]} 9. Be2 {[%emt 0:00:03]} cxd4 {[%emt 0:00:21]} 10. cxd4 {[%emt 0:00:03]} Bf5 {[%emt 0:00:24]} 11. O-O {[%emt 0:00:05]} Nc6 {[%emt 0:00:04]} 12. Rc1 {[%emt 0:00:05]} Rc8 {[%emt 0:00:02]} 13. Qb3 {[%emt 0:00:03]} Na5 {[%emt 0:00:31]} 14. Qb5 {[%emt 0:00:04]} a6 {[%emt 0:00:17]} 15. Rxc8 {[%emt 0:00:05]} Bxc8 {[%emt 0:00:02]} 16. Qb4 {[%emt 0:00:07]} Nc6 {[%emt 0:00:04]} 17. Qc5 {[%emt 0:00:05]} Be6 {[%emt 0:00:11]} 18. Rd1 {[%emt 0:00:10]} Qd5 {[%emt 0:00:05]} 19. Rc1 {[%emt 0:00:20]} Qxc5 {[%emt 0:00:13]} 20. Rxc5 {[%emt 0:00:03]} Bxa2 {[%emt 0:00:03]} 21. Bxa6 {[%emt 0:00:02]} bxa6 {[%emt 0:00:07]} 22. Rxc6 {[%emt 0:00:03]} Rb8 {[%emt 0:00:09]} 23. Bc3 {[%emt 0:00:03]} Ra8 {[%emt 0:00:19]} 24. Nd2 {[%emt 0:00:07]} Bd5 {[%emt 0:00:07]} 25. Rc5 {[%emt 0:00:02]} Be6 {[%emt 0:00:05]} 26. Nc4 {[%emt 0:00:02]} Bf8 {[%emt 0:00:06]} 27. Na3 {[%emt 0:00:11]} Bd7 {[%emt 0:00:05]} 28. Ra5 {[%emt 0:00:02]} e6 {[%emt 0:00:03]} 29. Nc2 {[%emt 0:00:02]} Rc8 {[%emt 0:00:02]} 30. Rxa6 {[%emt 0:00:27]} Rxc3 {[%emt 0:00:01]} 31. Ra2 {[%emt 0:00:03]} Ba4 {[%emt 0:00:03]} 32. Ne1 {[%emt 0:00:07]} Bb3 {[%emt 0:00:02]} 33. Ra1 {[%emt 0:00:04]} Bb4 {[%emt 0:00:03]} 34. g3 {[%emt 0:00:06]} Rc8 {[%emt 0:00:02]} 35. Nd3 {[%emt 0:00:04]} Bf8 {[%emt 0:00:02]} 36. Ne5 {[%emt 0:00:06]} Bd5 {[%emt 0:00:02]} 37. h4 {[%emt 0:00:06]} Bd6 {[%emt 0:00:02]} 38. Ng4 {[%emt 0:00:05]} Kg7 {[%emt 0:00:01]} 39. Nh2 {[%emt 0:00:12]} h5 {[%emt 0:00:01]} 40. Nf1 {[%emt 0:00:02]} e5 {[%emt 0:00:02]} 41. dxe5 {[%emt 0:00:05]} Bxe5 {[%emt 0:00:00]} 42. Ra5 {[%emt 0:00:02]} Rd8 {[%emt 0:00:06]} 43. e4 {[%emt 0:00:02]} Bc4 {[%emt 0:00:02]} 44. Rxe5 {[%emt 0:00:02]} Rd1 {[%emt 0:00:01]} 45. Kg2 {[%emt 0:00:05]} Bxf1+ {[%emt 0:00:02]} 46. Kf3 {[%emt 0:00:02]} Bc4 {[%emt 0:00:02]} 47. Rc5 {[%emt 0:00:04]} Be6 {[%emt 0:00:02]} 48. Ke3 {[%emt 0:00:05]} Bg4 {[%emt 0:00:01]} 49. f3 {[%emt 0:00:02]} Bh3 {[%emt 0:00:02]} 50. Kf4 {[%emt 0:00:05]} Rd6 {[%emt 0:00:02]} 51. Rc3 {[%emt 0:00:02]} f6 {[%emt 0:00:01]} 52. Rb3 {[%emt 0:00:15]} Bg2 {[%emt 0:00:01]} 53. Rc3 {[%emt 0:00:02]} Re6 {[%emt 0:00:04]} 54. Rb3 {[%emt 0:00:02]} Kh6 {[%emt 0:00:01]} 55. Ke3 {[%emt 0:00:06]} g5 {[%emt 0:00:02]} 56. hxg5+ {[%emt 0:00:03]} fxg5 {[%emt 0:00:01]} 57. Kf2 {[%emt 0:00:02]} Bh3 {[%emt 0:00:01]} 58. Rb1 {[%emt 0:00:02]} g4 {[%emt 0:00:01]} 59. fxg4 {[%emt 0:00:06]} Bxg4 {[%emt 0:00:00]} 60. Re1 {[%emt 0:00:02]} Kg5 {[%emt 0:00:02]} 61. e5 {[%emt 0:00:04]} Kf5 {[%emt 0:00:02]} 62. Re3 {[%emt 0:00:02]} Rxe5 {[%emt 0:00:01]} 63. Rxe5+ {[%emt 0:00:02]} Kxe5 {[%emt 0:00:00]} 64. Ke3 {[%emt 0:00:01]} Bd1 {[%emt 0:00:03]} 65. Kf2 {[%emt 0:00:04]} Ke4 {[%emt 0:00:02]} 66. Kg2 {[%emt 0:00:02]} Ke3 {[%emt 0:00:01]} 67. Kh3 {[%emt 0:00:01]} Bg4+ {[%emt 0:00:01]} 68. Kh4 {[%emt 0:00:02]} Kf3 {[%emt 0:00:03]} 69. Kg5 {[%emt 0:00:02]} Kxg3 {[%emt 0:00:00]} 70. Kf6 {[%emt 0:00:02]} h4 {[%emt 0:00:01]} 71. Ke5 {[%emt 0:00:02]} h3 {[%emt 0:00:02]} 72. Kd4 {[%emt 0:00:01]} h2 {[%emt 0:00:01]} 0-1

[Event "Queens Festival Final-C 2022"]
[Site "Tornelo"]
[Date "2022.06.25"]
[Round "4.2"]
[White "Sanudula, K M Dahamdi"]
[Black "Stadlinger, Lea"]
[Result "0-1"]
[ECO "D00"]
[WhiteElo "1710"]
[BlackElo "1723"]
[Annotator "NA RC"]
[PlyCount "124"]
[EventDate "2022.06.24"]
[EventType "tourn"]
[EventCountry "NET"]
[SourceTitle "playchess.com"]
[Source "ChessBase"]
[SourceQuality "1"]
[TimeControl "180+2"]

1. d4 {[%emt 0:00:02]} d5 {[%emt 0:00:05]} 2. e3 {[%emt 0:00:02]} e6 {[%emt 0:00:03]} 3. Bd3 {[%emt 0:00:02]} Nf6 {[%emt 0:00:01]} 4. Nd2 {[%emt 0:00:02]} c5 {[%emt 0:00:02]} 5. c3 {[%emt 0:00:01]} Nc6 {[%emt 0:00:03]} 6. f4 {[%emt 0:00:01]} Bd7 {[%emt 0:00:09]} 7. Ngf3 {[%emt 0:00:02]} c4 {[%emt 0:00:08]} 8. Bc2 {[%emt 0:00:02]} b5 {[%emt 0:00:03]} 9. Ne5 {[%emt 0:00:02]} Be7 {[%emt 0:00:01]} 10. O-O {[%emt 0:00:02]} O-O {[%emt 0:00:05]} 11. Rf3 {[%emt 0:00:01]} Nxe5 {[%emt 0:00:21]} 12. fxe5 {[%emt 0:00:02]} Ne8 {[%emt 0:00:00]} 13. Rh3 {[%emt 0:00:14]} h6 {[%emt 0:00:07]} 14. Qg4 {[%emt 0:00:03]} f5 {[%emt 0:00:20]} 15. Qg6 {[%emt 0:00:15]} Bg5 {[%emt 0:00:07]} 16. Nf3 {[%emt 0:00:21]} Be7 {[%emt 0:00:04]} 17. Rxh6 {[%emt 0:00:11]} Nc7 {[%emt 0:00:34]} 18. Rh3 {[%emt 0:00:13]} Be8 {[%emt 0:00:07]} 19. Qh7+ {[%emt 0:00:12]} Kf7 {[%emt 0:00:02]} 20. Rg3 {[%emt 0:00:06]} Rg8 {[%emt 0:00:06]} 21. Ne1 {[%emt 0:00:23]} Bh4 {[%emt 0:00:10]} 22. Nf3 {[%emt 0:00:39]} Bxg3 {[%emt 0:00:06]} 23. hxg3 {[%emt 0:00:00]} Kf8 {[%emt 0:00:07]} 24. Bd2 {[%emt 0:00:10]} Qe7 {[%emt 0:00:04]} 25. Rf1 {[%emt 0:00:06]} g5 {[%emt 0:00:03]} 26. Qh2 {[%emt 0:00:10]} Qg7 {[%emt 0:00:08]} 27. Kf2 {[%emt 0:00:01]} Rh8 {[%emt 0:00:04]} 28. Qg1 {[%emt 0:00:02]} Bh5 {[%emt 0:00:06]} 29. Ke1 {[%emt 0:00:05]} Bg4 {[%emt 0:00:14]} 30. e4 {[%emt 0:00:07]} Bxf3 {[%emt 0:00:14]} 31. gxf3 {[%emt 0:00:08]} f4 {[%emt 0:00:13]} 32. gxf4 {[%emt 0:00:06]} Qh6 {[%emt 0:00:02]} 33. fxg5 {[%emt 0:00:03]} Qh2 {[%emt 0:00:02]} 34. Qe3 {[%emt 0:00:05]} dxe4 {[%emt 0:00:04]} 35. fxe4+ {[%emt 0:00:02]} Ke7 {[%emt 0:00:01]} 36. Kd1 {[%emt 0:00:01]} Qh5+ {[%emt 0:00:03]} 37. Kc1 {[%emt 0:00:03]} Rag8 {[%emt 0:00:01]} 38. d5 {[%emt 0:00:02]} exd5 {[%emt 0:00:03]} 39. exd5 {[%emt 0:00:02]} Nxd5 {[%emt 0:00:01]} 40. Qf4 {[%emt 0:00:06]} Nxf4 {[%emt 0:00:03]} 41. Bxf4 {[%emt 0:00:01]} Qh3 {[%emt 0:00:01]} 42. Rd1 {[%emt 0:00:03]} Qg4 {[%emt 0:00:02]} 43. Be3 {[%emt 0:00:02]} Qf3 {[%emt 0:00:02]} 44. Bd4 {[%emt 0:00:02]} Ke6 {[%emt 0:00:01]} 45. b3 {[%emt 0:00:02]} Rxg5 {[%emt 0:00:02]} 46. bxc4 {[%emt 0:00:02]} bxc4 {[%emt 0:00:00]} 47. Ba4 {[%emt 0:00:03]} Qf4+ {[%emt 0:00:01]} 48. Kc2 {[%emt 0:00:01]} Qh2+ {[%emt 0:00:02]} 49. Rd2 {[%emt 0:00:02]} Qf4 {[%emt 0:00:01]} 50. Bb5 {[%emt 0:00:02]} Rh2 {[%emt 0:00:02]} 51. Bxc4+ {[%emt 0:00:01]} Ke7 {[%emt 0:00:01]} 52. Bc5+ {[%emt 0:00:01]} Ke8 {[%emt 0:00:03]} 53. Bb5+ {[%emt 0:00:04]} Kf7 {[%emt 0:00:04]} 54. Rxh2 {[%emt 0:00:05]} Qxh2+ {[%emt 0:00:02]} 55. Kb3 {[%emt 0:00:00]} Qxe5 {[%emt 0:00:03]} 56. Bc4+ {[%emt 0:00:01]} Kg6 {[%emt 0:00:02]} 57. Bd4 {[%emt 0:00:02]} Qb8+ {[%emt 0:00:03]} 58. Kc2 {[%emt 0:00:02]} Rg2+ {[%emt 0:00:00]} 59. Kd3 {[%emt 0:00:03]} Qg3+ {[%emt 0:00:01]} 60. Ke4 {[%emt 0:00:02]} Qg4+ {[%emt 0:00:03]} 61. Kd5 {[%emt 0:00:01]} Rb2 {[%emt 0:00:02]} 62. Bd3+ {[%emt 0:00:02]} Kh5 {[%emt 0:00:02]} 0-1